[Event "Titled Tuesday Blitz March 15 Early 2022"]
[White "Dreev, Aleksey"]
[Black "Khamzin, Olzhas"]
[WhiteFideId "4100107"]
[BlackFideId "13701690"]
[WhiteElo "2625"]
[BlackElo "2194"]
[Result "1-0"]
[Round "08"]
[TimeControl "180+1"]
[Date "2022.03.15"]
[WhiteClock "0:00:58"]
[BlackClock "0:00:18"]

1. d4 {[%clk 0:03:00]}  Nf6 {[%clk 0:02:58]} 2. Nf3 {[%clk 0:02:59]}  g6 {[%clk 0:02:56]} 3. g3 {[%clk 0:02:59]}  Bg7 {[%clk 0:02:56]} 4. Bg2 {[%clk 0:02:59]}  O-O {[%clk 0:02:55]} 5. O-O {[%clk 0:03:00]}  d6 {[%clk 0:02:55]} 6. b3 {[%clk 0:02:59]}  Nbd7 {[%clk 0:02:56]} 7. Bb2 {[%clk 0:03:00]}  c5 {[%clk 0:02:56]} 8. c4 {[%clk 0:02:59]}  Rb8 {[%clk 0:02:56]} 9. Nc3 {[%clk 0:02:59]}  a6 {[%clk 0:02:57]} 10. Qd2 {[%clk 0:02:54]}  b5 {[%clk 0:02:56]} 11. dxc5 {[%clk 0:02:49]}  Nxc5 {[%clk 0:02:54]} 12. Nd4 {[%clk 0:02:47]}  Bb7 {[%clk 0:02:32]} 13. Bxb7 {[%clk 0:02:39]}  Rxb7 {[%clk 0:02:33]} 14. cxb5 {[%clk 0:02:39]}  axb5 {[%clk 0:02:33]} 15. Ndxb5 {[%clk 0:02:29]}  Nfe4 {[%clk 0:02:17]} 16. Qe3 {[%clk 0:02:18]}  Rxb5 {[%clk 0:02:09]} 17. Nxb5 {[%clk 0:02:18]}  Bxb2 {[%clk 0:02:08]} 18. Rab1 {[%clk 0:02:17]}  Bg7 {[%clk 0:01:54]} 19. b4 {[%clk 0:02:17]}  Na4 {[%clk 0:01:34]} 20. Qxe4 {[%clk 0:02:16]}  Qd7 {[%clk 0:01:34]} 21. Qd3 {[%clk 0:02:10]}  Rb8 {[%clk 0:01:33]} 22. Nd4 {[%clk 0:02:07]}  e5 {[%clk 0:01:28]} 23. Nb3 {[%clk 0:01:54]}  e4 {[%clk 0:01:28]} 24. Qd2 {[%clk 0:01:49]}  h5 {[%clk 0:01:02]} 25. Nc5 {[%clk 0:01:41]}  Qa7 {[%clk 0:00:35]} 26. Nxe4 {[%clk 0:01:38]}  h4 {[%clk 0:00:32]} 27. Qxd6 {[%clk 0:01:32]}  hxg3 {[%clk 0:00:30]} 28. hxg3 {[%clk 0:01:30]}  Rb5 {[%clk 0:00:27]} 29. Qd8+ {[%clk 0:01:27]}  Kh7 {[%clk 0:00:26]} 30. Kg2 {[%clk 0:01:11]}  Qb7 {[%clk 0:00:25]} 31. f3 {[%clk 0:01:07]}  Rh5 {[%clk 0:00:25]} 32. g4 {[%clk 0:01:03]}  Re5 {[%clk 0:00:18]} 33. Rh1+ {[%clk 0:01:03]}  Bh6 {[%clk 0:00:18]} 34. Rxh6+ {[%clk 0:00:59]}  Kxh6 {[%clk 0:00:18]} 35. Qh8# {[%clk 0:00:58]} 1-0


[Site "https://www.chess.com"]

[Event "Titled Tuesday Blitz March 15 Early 2022"]
[White "Dubov, Daniil"]
[Black "Bortnyk, Olexandr"]
[WhiteFideId "24126055"]
[BlackFideId "14120828"]
[WhiteElo "2791"]
[BlackElo "2723"]
[Result "1-0"]
[Round "08"]
[TimeControl "180+1"]
[Date "2022.03.15"]
[WhiteClock "0:00:43"]
[BlackClock "0:00:05"]

1. d4 {[%clk 0:02:57]}  d6 {[%clk 0:03:00]} 2. e4 {[%clk 0:02:56]}  Nf6 {[%clk 0:03:00]} 3. Nc3 {[%clk 0:02:56]}  e5 {[%clk 0:02:59]} 4. Nf3 {[%clk 0:02:56]}  Nbd7 {[%clk 0:02:59]} 5. h3 {[%clk 0:02:54]}  c6 {[%clk 0:02:55]} 6. a4 {[%clk 0:02:51]}  h6 {[%clk 0:02:31]} 7. Be3 {[%clk 0:02:48]}  Be7 {[%clk 0:02:30]} 8. g4 {[%clk 0:02:46]}  Qa5 {[%clk 0:02:24]} 9. Qd2 {[%clk 0:02:42]}  O-O {[%clk 0:01:55]} 10. Rg1 {[%clk 0:02:35]}  exd4 {[%clk 0:01:44]} 11. Nxd4 {[%clk 0:02:31]}  Nc5 {[%clk 0:01:42]} 12. g5 {[%clk 0:02:25]}  hxg5 {[%clk 0:01:31]} 13. Bxg5 {[%clk 0:02:24]}  Re8 {[%clk 0:01:23]} 14. Be2 {[%clk 0:02:16]}  Qb4 {[%clk 0:01:07]} 15. Rg3 {[%clk 0:01:46]}  Nfxe4 {[%clk 0:00:51]} 16. Nxe4 {[%clk 0:01:42]}  Qxb2 {[%clk 0:00:52]} 17. Qc3 {[%clk 0:01:35]}  Qxc3+ {[%clk 0:00:26]} 18. Nxc3 {[%clk 0:01:35]}  Bxg5 {[%clk 0:00:26]} 19. Rxg5 {[%clk 0:01:35]}  Bxh3 {[%clk 0:00:26]} 20. Kd2 {[%clk 0:01:27]}  g6 {[%clk 0:00:19]} 21. Rag1 {[%clk 0:01:13]}  Bd7 {[%clk 0:00:14]} 22. Bd3 {[%clk 0:01:03]}  Nxd3 {[%clk 0:00:14]} 23. cxd3 {[%clk 0:01:04]}  Kf8 {[%clk 0:00:13]} 24. Ne4 {[%clk 0:01:02]}  c5 {[%clk 0:00:06]} 25. Nb5 {[%clk 0:00:55]}  Bxb5 {[%clk 0:00:05]} 26. axb5 {[%clk 0:00:56]}  Re6 {[%clk 0:00:05]} 27. f4 {[%clk 0:00:52]}  Ke7 {[%clk 0:00:04]} 28. f5 {[%clk 0:00:52]}  gxf5 {[%clk 0:00:04]} 29. Rxf5 {[%clk 0:00:53]}  Rf8 {[%clk 0:00:01]} 30. Ra1 {[%clk 0:00:51]}  a6 {[%clk 0:00:02]} 31. bxa6 {[%clk 0:00:50]}  bxa6 {[%clk 0:00:02]} 32. Rxa6 {[%clk 0:00:49]}  c4 {[%clk 0:00:03]} 33. Ra7+ {[%clk 0:00:49]}  Kd8 {[%clk 0:00:03]} 34. Rb5 {[%clk 0:00:45]}  Kc8 {[%clk 0:00:03]} 35. Ra8+ {[%clk 0:00:45]}  Kc7 {[%clk 0:00:04]} 36. Rxf8 {[%clk 0:00:45]}  cxd3 {[%clk 0:00:05]} 37. Kxd3 {[%clk 0:00:44]}  f5 {[%clk 0:00:05]} 38. Rfxf5 {[%clk 0:00:43]} 1-0


[Site "https://www.chess.com"]

[Event "Titled Tuesday Blitz March 15 Early 2022"]
[White "Esipenko, Andrey"]
[Black "Aravindh, Chithambaram VR."]
[WhiteFideId "24175439"]
[BlackFideId "5072786"]
[WhiteElo "2617"]
[BlackElo "2561"]
[Result "1-0"]
[Round "08"]
[TimeControl "180+1"]
[Date "2022.03.15"]
[WhiteClock "0:00:38"]
[BlackClock "0:00:03"]

1. e4 {[%clk 0:03:00]}  g6 {[%clk 0:02:57]} 2. d4 {[%clk 0:02:59]}  Bg7 {[%clk 0:02:56]} 3. Nf3 {[%clk 0:02:59]}  d6 {[%clk 0:02:55]} 4. Be3 {[%clk 0:02:59]}  a6 {[%clk 0:02:53]} 5. c4 {[%clk 0:02:58]}  Nf6 {[%clk 0:02:43]} 6. Nc3 {[%clk 0:02:58]}  O-O {[%clk 0:02:42]} 7. Be2 {[%clk 0:02:57]}  Nc6 {[%clk 0:02:42]} 8. d5 {[%clk 0:02:57]}  Nb8 {[%clk 0:02:33]} 9. O-O {[%clk 0:02:56]}  Nbd7 {[%clk 0:02:27]} 10. h3 {[%clk 0:02:54]}  c5 {[%clk 0:02:16]} 11. Qd2 {[%clk 0:02:45]}  b5 {[%clk 0:02:08]} 12. cxb5 {[%clk 0:02:44]}  axb5 {[%clk 0:02:09]} 13. Bxb5 {[%clk 0:02:45]}  Ba6 {[%clk 0:02:10]} 14. a4 {[%clk 0:02:46]}  Nb6 {[%clk 0:02:02]} 15. Bh6 {[%clk 0:02:43]}  Qc7 {[%clk 0:01:30]} 16. Bxg7 {[%clk 0:02:36]}  Kxg7 {[%clk 0:01:31]} 17. Rfe1 {[%clk 0:02:37]}  Nfd7 {[%clk 0:01:21]} 18. b3 {[%clk 0:02:18]}  Nf6 {[%clk 0:01:05]} 19. Qc2 {[%clk 0:02:02]}  Nbd7 {[%clk 0:01:02]} 20. Nd2 {[%clk 0:02:01]}  Rfb8 {[%clk 0:00:30]} 21. Nc4 {[%clk 0:01:52]}  Bxb5 {[%clk 0:00:29]} 22. axb5 {[%clk 0:01:47]}  Ne5 {[%clk 0:00:25]} 23. Nxe5 {[%clk 0:01:38]}  dxe5 {[%clk 0:00:26]} 24. Ra4 {[%clk 0:01:39]}  Ne8 {[%clk 0:00:16]} 25. Rea1 {[%clk 0:01:38]}  Rxa4 {[%clk 0:00:16]} 26. bxa4 {[%clk 0:01:35]}  Qa5 {[%clk 0:00:16]} 27. f4 {[%clk 0:01:11]}  exf4 {[%clk 0:00:16]} 28. e5 {[%clk 0:01:08]}  Qb4 {[%clk 0:00:17]} 29. Rd1 {[%clk 0:01:07]}  f6 {[%clk 0:00:10]} 30. d6 {[%clk 0:01:02]}  exd6 {[%clk 0:00:06]} 31. Nd5 {[%clk 0:01:02]}  Qa5 {[%clk 0:00:04]} 32. exf6+ {[%clk 0:01:00]}  Nxf6 {[%clk 0:00:04]} 33. Qb2 {[%clk 0:01:00]}  Rf8 {[%clk 0:00:04]} 34. Nxf4 {[%clk 0:00:54]}  Kg8 {[%clk 0:00:03]} 35. Ne6 {[%clk 0:00:52]}  Qxa4 {[%clk 0:00:02]} 36. Rf1 {[%clk 0:00:48]}  Rf7 {[%clk 0:00:02]} 37. Rxf6 {[%clk 0:00:47]}  Qd1+ {[%clk 0:00:02]} 38. Kh2 {[%clk 0:00:47]}  Qd5 {[%clk 0:00:02]} 39. Rxf7 {[%clk 0:00:40]}  Kxf7 {[%clk 0:00:03]} 40. b6 {[%clk 0:00:38]} 1-0


[Site "https://www.chess.com"]

[Event "Titled Tuesday Blitz March 15 Early 2022"]
[White "Fathy, Elameir"]
[Black "Royal, Shreyas"]
[WhiteFideId "10600396"]
[BlackFideId "448869"]
[WhiteElo "2311"]
[BlackElo "1986"]
[Result "1-0"]
[Round "08"]
[TimeControl "180+1"]
[Date "2022.03.15"]
[WhiteClock "0:00:04"]
[BlackClock "0:00:23"]

1. d4 {[%clk 0:02:51]}  Nf6 {[%clk 0:02:57]} 2. c4 {[%clk 0:02:52]}  e6 {[%clk 0:02:57]} 3. Nf3 {[%clk 0:02:52]}  d5 {[%clk 0:02:56]} 4. g3 {[%clk 0:02:52]}  Bb4+ {[%clk 0:02:54]} 5. Bd2 {[%clk 0:02:52]}  Be7 {[%clk 0:02:53]} 6. Bg2 {[%clk 0:02:52]}  O-O {[%clk 0:02:54]} 7. O-O {[%clk 0:02:53]}  c6 {[%clk 0:02:51]} 8. Qc2 {[%clk 0:02:53]}  Nbd7 {[%clk 0:02:49]} 9. Rd1 {[%clk 0:02:53]}  b6 {[%clk 0:02:50]} 10. b3 {[%clk 0:02:53]}  Ba6 {[%clk 0:02:47]} 11. a4 {[%clk 0:02:43]}  Rc8 {[%clk 0:02:41]} 12. a5 {[%clk 0:02:40]}  c5 {[%clk 0:02:42]} 13. axb6 {[%clk 0:02:39]}  Qxb6 {[%clk 0:02:42]} 14. Ba5 {[%clk 0:02:40]}  Qb8 {[%clk 0:02:39]} 15. Bc3 {[%clk 0:02:28]}  Bb7 {[%clk 0:02:38]} 16. e3 {[%clk 0:02:19]}  dxc4 {[%clk 0:02:34]} 17. bxc4 {[%clk 0:02:18]}  cxd4 {[%clk 0:02:34]} 18. Bxd4 {[%clk 0:02:17]}  Be4 {[%clk 0:02:24]} 19. Qe2 {[%clk 0:02:15]}  Nb6 {[%clk 0:02:20]} 20. Nbd2 {[%clk 0:02:13]}  Bb7 {[%clk 0:02:07]} 21. Rdb1 {[%clk 0:01:37]}  Ne4 {[%clk 0:01:57]} 22. Bxb6 {[%clk 0:00:56]}  axb6 {[%clk 0:01:05]} 23. Rxb6 {[%clk 0:00:56]}  Bf6 {[%clk 0:00:58]} 24. Nd4 {[%clk 0:00:48]}  Nc3 {[%clk 0:00:56]} 25. Qd3 {[%clk 0:00:41]}  Bxd4 {[%clk 0:00:46]} 26. Rxb7 {[%clk 0:00:37]}  Qe5 {[%clk 0:00:42]} 27. exd4 {[%clk 0:00:33]}  Ne2+ {[%clk 0:00:42]} 28. Kh1 {[%clk 0:00:32]}  Nxd4 {[%clk 0:00:43]} 29. Rf1 {[%clk 0:00:21]}  Rfd8 {[%clk 0:00:39]} 30. Nf3 {[%clk 0:00:19]}  Qf6 {[%clk 0:00:36]} 31. Nxd4 {[%clk 0:00:18]}  Rxd4 {[%clk 0:00:36]} 32. Qf3 {[%clk 0:00:18]}  Qg6 {[%clk 0:00:33]} 33. c5 {[%clk 0:00:15]}  h5 {[%clk 0:00:33]} 34. h4 {[%clk 0:00:14]}  Rxc5 {[%clk 0:00:32]} 35. Rb8+ {[%clk 0:00:14]}  Kh7 {[%clk 0:00:32]} 36. Rb3 {[%clk 0:00:12]}  Rf5 {[%clk 0:00:32]} 37. Qe3 {[%clk 0:00:11]}  Qf6 {[%clk 0:00:30]} 38. Be4 {[%clk 0:00:07]}  g6 {[%clk 0:00:26]} 39. Bxf5 {[%clk 0:00:08]}  gxf5 {[%clk 0:00:27]} 40. Rd3 {[%clk 0:00:07]}  Re4 {[%clk 0:00:25]} 41. Qg5 {[%clk 0:00:06]}  Qe5 {[%clk 0:00:26]} 42. Qxh5+ {[%clk 0:00:06]}  Kg7 {[%clk 0:00:27]} 43. Qg5+ {[%clk 0:00:06]}  Kh7 {[%clk 0:00:27]} 44. Rd7 {[%clk 0:00:05]}  Rg4 {[%clk 0:00:23]} 45. Rxf7+ {[%clk 0:00:04]}  Qg7 {[%clk 0:00:23]} 46. Rxg7+ {[%clk 0:00:03]}  Kh8 {[%clk 0:00:23]} 47. Qh6# {[%clk 0:00:04]} 1-0


[Site "https://www.chess.com"]

[Event "Titled Tuesday Blitz March 15 Early 2022"]
[White "Flis, Pawel"]
[Black "Goriatchkin, Jouri"]
[WhiteFideId "1112864"]
[BlackFideId "4120183"]
[WhiteElo "1735"]
[BlackElo "1006"]
[Result "0-1"]
[Round "08"]
[TimeControl "180+1"]
[Date "2022.03.15"]
[WhiteClock "0:00:30"]
[BlackClock "0:00:27"]

1. e4 {[%clk 0:02:51]}  c6 {[%clk 0:02:59]} 2. d4 {[%clk 0:02:50]}  d5 {[%clk 0:02:58]} 3. exd5 {[%clk 0:02:51]}  cxd5 {[%clk 0:02:58]} 4. c4 {[%clk 0:02:51]}  Nf6 {[%clk 0:02:56]} 5. Nc3 {[%clk 0:02:51]}  Nc6 {[%clk 0:02:54]} 6. Nf3 {[%clk 0:02:49]}  e6 {[%clk 0:02:53]} 7. Bd3 {[%clk 0:02:46]}  dxc4 {[%clk 0:02:52]} 8. Bxc4 {[%clk 0:02:45]}  Be7 {[%clk 0:02:52]} 9. O-O {[%clk 0:02:45]}  O-O {[%clk 0:02:51]} 10. Bg5 {[%clk 0:02:43]}  a6 {[%clk 0:02:49]} 11. a4 {[%clk 0:02:41]}  Nb4 {[%clk 0:02:43]} 12. Re1 {[%clk 0:02:36]}  b6 {[%clk 0:02:41]} 13. Qb3 {[%clk 0:02:16]}  a5 {[%clk 0:02:29]} 14. Nb5 {[%clk 0:02:10]}  Bb7 {[%clk 0:02:28]} 15. Ne5 {[%clk 0:02:07]}  Nfd5 {[%clk 0:02:16]} 16. Bxe7 {[%clk 0:02:04]}  Qxe7 {[%clk 0:02:15]} 17. Rad1 {[%clk 0:01:50]}  Qg5 {[%clk 0:02:13]} 18. Qg3 {[%clk 0:01:45]}  Qxg3 {[%clk 0:01:59]} 19. hxg3 {[%clk 0:01:46]}  Rfd8 {[%clk 0:01:54]} 20. f4 {[%clk 0:01:41]}  Rac8 {[%clk 0:01:49]} 21. Rc1 {[%clk 0:01:39]}  Ne7 {[%clk 0:01:36]} 22. Bf1 {[%clk 0:01:35]}  Nf5 {[%clk 0:01:30]} 23. Rxc8 {[%clk 0:01:29]}  Bxc8 {[%clk 0:01:29]} 24. Nf3 {[%clk 0:01:22]}  Nxg3 {[%clk 0:01:26]} 25. Rc1 {[%clk 0:01:20]}  Nxf1 {[%clk 0:01:21]} 26. Kxf1 {[%clk 0:01:21]}  Bb7 {[%clk 0:01:20]} 27. Ne5 {[%clk 0:01:12]}  f6 {[%clk 0:01:18]} 28. Nf3 {[%clk 0:01:05]}  Bxf3 {[%clk 0:01:07]} 29. gxf3 {[%clk 0:01:06]}  Nd3 {[%clk 0:01:00]} 30. Rc6 {[%clk 0:00:57]}  Nxb2 {[%clk 0:00:32]} 31. Rxe6 {[%clk 0:00:56]}  Nxa4 {[%clk 0:00:29]} 32. Re7 {[%clk 0:00:50]}  Kf8 {[%clk 0:00:28]} 33. Rb7 {[%clk 0:00:48]}  Rd5 {[%clk 0:00:26]} 34. Nc7 {[%clk 0:00:45]}  Rd7 {[%clk 0:00:20]} 35. Ne6+ {[%clk 0:00:44]}  Ke7 {[%clk 0:00:20]} 36. Rxd7+ {[%clk 0:00:39]}  Kxd7 {[%clk 0:00:21]} 37. Nxg7 {[%clk 0:00:39]}  b5 {[%clk 0:00:21]} 38. Nf5 {[%clk 0:00:38]}  b4 {[%clk 0:00:21]} 39. Ne3 {[%clk 0:00:37]}  b3 {[%clk 0:00:20]} 40. Nc4 {[%clk 0:00:35]}  b2 {[%clk 0:00:21]} 41. Nxb2 {[%clk 0:00:35]}  Nxb2 {[%clk 0:00:21]} 42. Ke2 {[%clk 0:00:35]}  a4 {[%clk 0:00:21]} 43. Kd2 {[%clk 0:00:34]}  Nc4+ {[%clk 0:00:22]} 44. Kc3 {[%clk 0:00:34]}  Nb6 {[%clk 0:00:23]} 45. Kb4 {[%clk 0:00:30]}  h5 {[%clk 0:00:23]} 46. Kb5 {[%clk 0:00:29]}  h4 {[%clk 0:00:23]} 47. Kxb6 {[%clk 0:00:30]}  a3 {[%clk 0:00:24]} 48. Kc5 {[%clk 0:00:30]}  a2 {[%clk 0:00:25]} 49. d5 {[%clk 0:00:31]}  a1=Q {[%clk 0:00:25]} 50. d6 {[%clk 0:00:32]}  Qc3+ {[%clk 0:00:25]} 51. Kd5 {[%clk 0:00:32]}  Qxf3+ {[%clk 0:00:26]} 52. Kc5 {[%clk 0:00:31]}  Qxf4 {[%clk 0:00:26]} 53. Kb5 {[%clk 0:00:30]}  Qxd6 {[%clk 0:00:26]} 54. Kc4 {[%clk 0:00:30]}  h3 {[%clk 0:00:26]} 55. Kc3 {[%clk 0:00:30]}  h2 {[%clk 0:00:27]} 56. Kc2 {[%clk 0:00:31]}  h1=Q {[%clk 0:00:27]} 57. Kb2 {[%clk 0:00:31]}  Qg2+ {[%clk 0:00:27]} 58. Kc3 {[%clk 0:00:30]}  Qf3+ {[%clk 0:00:27]} 59. Kc4 {[%clk 0:00:30]}  Qe4+ {[%clk 0:00:27]} 60. Kc3 {[%clk 0:00:30]}  Qed3+ {[%clk 0:00:27]} 61. Kb2 {[%clk 0:00:30]}  Qb6+ {[%clk 0:00:28]} 62. Ka1 {[%clk 0:00:30]}  Qbb1# {[%clk 0:00:27]} 0-1


[Site "https://www.chess.com"]

[Event "Titled Tuesday Blitz March 15 Early 2022"]
[White "Gontcharov, Vladislav"]
[Black "Brunner, Nicolas"]
[WhiteFideId "4123492"]
[BlackFideId "620246"]
[WhiteElo "2503"]
[BlackElo "2372"]
[Result "1-0"]
[Round "08"]
[TimeControl "180+1"]
[Date "2022.03.15"]
[WhiteClock "0:00:30"]
[BlackClock "0:00:02"]

1. e4 {[%clk 0:02:48]}  e5 {[%clk 0:02:59]} 2. Nf3 {[%clk 0:02:47]}  Nc6 {[%clk 0:02:59]} 3. Bb5 {[%clk 0:02:45]}  a6 {[%clk 0:02:58]} 4. Ba4 {[%clk 0:02:43]}  Nf6 {[%clk 0:02:59]} 5. d3 {[%clk 0:02:42]}  d6 {[%clk 0:02:56]} 6. c3 {[%clk 0:02:42]}  g6 {[%clk 0:02:55]} 7. O-O {[%clk 0:02:42]}  Bg7 {[%clk 0:02:55]} 8. h3 {[%clk 0:02:41]}  O-O {[%clk 0:02:54]} 9. Re1 {[%clk 0:02:40]}  b5 {[%clk 0:02:53]} 10. Bb3 {[%clk 0:02:40]}  Na5 {[%clk 0:02:46]} 11. Bc2 {[%clk 0:02:39]}  c5 {[%clk 0:02:46]} 12. a4 {[%clk 0:02:37]}  Bb7 {[%clk 0:02:42]} 13. Bg5 {[%clk 0:02:23]}  h6 {[%clk 0:02:40]} 14. Be3 {[%clk 0:02:13]}  Nc6 {[%clk 0:02:37]} 15. Nbd2 {[%clk 0:02:10]}  Re8 {[%clk 0:02:35]} 16. Bb3 {[%clk 0:02:05]}  Qd7 {[%clk 0:02:25]} 17. Qc1 {[%clk 0:02:04]}  Kh7 {[%clk 0:02:23]} 18. Nf1 {[%clk 0:02:02]}  Rac8 {[%clk 0:02:19]} 19. axb5 {[%clk 0:02:01]}  axb5 {[%clk 0:02:18]} 20. Bd5 {[%clk 0:02:00]}  Nxd5 {[%clk 0:02:13]} 21. exd5 {[%clk 0:02:01]}  Ne7 {[%clk 0:02:13]} 22. c4 {[%clk 0:02:01]}  Ra8 {[%clk 0:02:13]} 23. N3d2 {[%clk 0:01:55]}  Nf5 {[%clk 0:02:10]} 24. cxb5 {[%clk 0:01:45]}  Qxb5 {[%clk 0:02:09]} 25. Nc4 {[%clk 0:01:45]}  Rxa1 {[%clk 0:02:01]} 26. Qxa1 {[%clk 0:01:44]}  Ra8 {[%clk 0:02:02]} 27. Qc1 {[%clk 0:01:40]}  Bxd5 {[%clk 0:01:58]} 28. g4 {[%clk 0:01:40]}  Nxe3 {[%clk 0:01:57]} 29. Nfxe3 {[%clk 0:01:39]}  Bf3 {[%clk 0:01:36]} 30. Nxd6 {[%clk 0:01:33]}  Qxd3 {[%clk 0:01:35]} 31. Qxc5 {[%clk 0:01:32]}  Bf8 {[%clk 0:01:14]} 32. Nec4 {[%clk 0:01:22]}  Rd8 {[%clk 0:00:44]} 33. Nxe5 {[%clk 0:01:19]}  Qd2 {[%clk 0:00:31]} 34. Nxf3 {[%clk 0:01:17]}  Qxd6 {[%clk 0:00:30]} 35. Qc4 {[%clk 0:01:07]}  Qf6 {[%clk 0:00:28]} 36. Kg2 {[%clk 0:01:04]}  Bg7 {[%clk 0:00:25]} 37. b3 {[%clk 0:01:03]}  Rb8 {[%clk 0:00:22]} 38. Re4 {[%clk 0:01:02]}  Rb7 {[%clk 0:00:20]} 39. Rf4 {[%clk 0:00:59]}  Qc3 {[%clk 0:00:20]} 40. Qxc3 {[%clk 0:00:47]}  Bxc3 {[%clk 0:00:19]} 41. Re4 {[%clk 0:00:47]}  Rxb3 {[%clk 0:00:18]} 42. Re3 {[%clk 0:00:48]}  Ra3 {[%clk 0:00:17]} 43. Ne5 {[%clk 0:00:48]}  Kg7 {[%clk 0:00:13]} 44. Nc4 {[%clk 0:00:46]}  Rb3 {[%clk 0:00:12]} 45. Rd3 {[%clk 0:00:46]}  h5 {[%clk 0:00:04]} 46. g5 {[%clk 0:00:45]}  Rb5 {[%clk 0:00:01]} 47. Rxc3 {[%clk 0:00:43]}  Rxg5+ {[%clk 0:00:02]} 48. Kf3 {[%clk 0:00:42]}  Rc5 {[%clk 0:00:03]} 49. Rc2 {[%clk 0:00:42]}  Rc8 {[%clk 0:00:02]} 50. Ne3 {[%clk 0:00:41]}  Re8 {[%clk 0:00:02]} 51. Rc7 {[%clk 0:00:41]}  Kf6 {[%clk 0:00:02]} 52. h4 {[%clk 0:00:40]}  Rd8 {[%clk 0:00:02]} 53. Ke4 {[%clk 0:00:39]}  Re8+ {[%clk 0:00:02]} 54. Kf4 {[%clk 0:00:39]}  Rd8 {[%clk 0:00:02]} 55. Rc4 {[%clk 0:00:36]}  Rd7 {[%clk 0:00:02]} 56. Rc6+ {[%clk 0:00:35]}  Kg7 {[%clk 0:00:02]} 57. Ke4 {[%clk 0:00:34]}  Re7+ {[%clk 0:00:02]} 58. Kf3 {[%clk 0:00:33]}  Rd7 {[%clk 0:00:02]} 59. Ng2 {[%clk 0:00:33]}  Rd4 {[%clk 0:00:02]} 60. Nf4 {[%clk 0:00:33]}  Ra4 {[%clk 0:00:02]} 61. Rc7 {[%clk 0:00:33]}  Ra3+ {[%clk 0:00:02]} 62. Kg2 {[%clk 0:00:33]}  Ra4 {[%clk 0:00:03]} 63. Kg3 {[%clk 0:00:33]}  Ra3+ {[%clk 0:00:03]} 64. f3 {[%clk 0:00:33]}  Ra4 {[%clk 0:00:03]} 65. Ne6+ {[%clk 0:00:33]}  Kg8 {[%clk 0:00:03]} 66. Ng5 {[%clk 0:00:33]}  f6 {[%clk 0:00:02]} 67. Ne4 {[%clk 0:00:32]}  Ra6 {[%clk 0:00:02]} 68. Rd7 {[%clk 0:00:30]} 1-0


[Site "https://www.chess.com"]

[Event "Titled Tuesday Blitz March 15 Early 2022"]
[White "Goryachkina, Aleksandra"]
[Black "Bettalli, Francesco"]
[WhiteFideId "4147103"]
[BlackFideId "2816453"]
[WhiteElo "2596"]
[BlackElo "2468"]
[Result "1/2-1/2"]
[Round "08"]
[TimeControl "180+1"]
[Date "2022.03.15"]
[WhiteClock "0:00:03"]
[BlackClock "0:00:20"]

1. e4 {[%clk 0:02:59]}  e5 {[%clk 0:03:00]} 2. Nf3 {[%clk 0:02:59]}  Nf6 {[%clk 0:03:00]} 3. Nxe5 {[%clk 0:02:58]}  Nxe4 {[%clk 0:03:01]} 4. Qe2 {[%clk 0:02:55]}  Qe7 {[%clk 0:03:01]} 5. Qxe4 {[%clk 0:02:54]}  d6 {[%clk 0:03:02]} 6. d4 {[%clk 0:02:53]}  dxe5 {[%clk 0:03:03]} 7. dxe5 {[%clk 0:02:53]}  Nc6 {[%clk 0:03:03]} 8. Nc3 {[%clk 0:02:44]}  Qxe5 {[%clk 0:03:00]} 9. Qxe5+ {[%clk 0:02:42]}  Nxe5 {[%clk 0:03:01]} 10. Bf4 {[%clk 0:02:41]}  f6 {[%clk 0:02:42]} 11. O-O-O {[%clk 0:02:35]}  Bd7 {[%clk 0:02:42]} 12. Bxe5 {[%clk 0:02:26]}  fxe5 {[%clk 0:02:43]} 13. Bb5 {[%clk 0:02:16]}  O-O-O {[%clk 0:02:37]} 14. Bxd7+ {[%clk 0:02:15]}  Rxd7 {[%clk 0:02:37]} 15. Rhe1 {[%clk 0:02:08]}  Bd6 {[%clk 0:02:36]} 16. Ne4 {[%clk 0:02:05]}  Rf8 {[%clk 0:02:34]} 17. Rd3 {[%clk 0:02:04]}  Kd8 {[%clk 0:02:30]} 18. Red1 {[%clk 0:01:59]}  Ke7 {[%clk 0:02:30]} 19. Nc5 {[%clk 0:01:56]}  Rxf2 {[%clk 0:02:27]} 20. Nxd7 {[%clk 0:01:53]}  Kxd7 {[%clk 0:02:28]} 21. R3d2 {[%clk 0:01:47]}  Rf6 {[%clk 0:02:27]} 22. Re2 {[%clk 0:01:42]}  Ke6 {[%clk 0:02:27]} 23. c3 {[%clk 0:01:41]}  Rf4 {[%clk 0:02:23]} 24. Kc2 {[%clk 0:01:38]}  e4 {[%clk 0:02:17]} 25. Rd4 {[%clk 0:01:15]}  Ke5 {[%clk 0:02:17]} 26. b4 {[%clk 0:01:14]}  c6 {[%clk 0:02:06]} 27. a4 {[%clk 0:01:10]}  Bc7 {[%clk 0:02:06]} 28. a5 {[%clk 0:01:08]}  Bd6 {[%clk 0:02:06]} 29. g3 {[%clk 0:01:00]}  Rg4 {[%clk 0:02:05]} 30. Re3 {[%clk 0:00:58]}  c5 {[%clk 0:01:51]} 31. Rc4 {[%clk 0:00:57]}  Kd5 {[%clk 0:01:49]} 32. Kb3 {[%clk 0:00:56]}  b5 {[%clk 0:01:44]} 33. axb6 {[%clk 0:00:56]}  axb6 {[%clk 0:01:44]} 34. b5 {[%clk 0:00:55]}  h5 {[%clk 0:01:42]} 35. Ra4 {[%clk 0:00:36]}  h4 {[%clk 0:01:38]} 36. Ra2 {[%clk 0:00:28]}  hxg3 {[%clk 0:01:34]} 37. hxg3 {[%clk 0:00:28]}  c4+ {[%clk 0:01:15]} 38. Ka4 {[%clk 0:00:27]}  Rxg3 {[%clk 0:01:10]} 39. Rd2+ {[%clk 0:00:23]}  Kc5 {[%clk 0:01:10]} 40. Rxe4 {[%clk 0:00:18]}  Rxc3 {[%clk 0:01:10]} 41. Red4 {[%clk 0:00:15]}  Rd3 {[%clk 0:00:59]} 42. R4xd3 {[%clk 0:00:15]}  cxd3 {[%clk 0:01:00]} 43. Rxd3 {[%clk 0:00:15]}  Be5 {[%clk 0:00:44]} 44. Rd8 {[%clk 0:00:11]}  Bd4 {[%clk 0:00:37]} 45. Rg8 {[%clk 0:00:05]}  Kc4 {[%clk 0:00:35]} 46. Rc8+ {[%clk 0:00:04]}  Bc5 {[%clk 0:00:35]} 47. Rg8 {[%clk 0:00:04]}  Bd4 {[%clk 0:00:35]} 48. Rc8+ {[%clk 0:00:04]}  Kd5 {[%clk 0:00:30]} 49. Kb3 {[%clk 0:00:03]}  g5 {[%clk 0:00:26]} 50. Rg8 {[%clk 0:00:03]}  Be3 {[%clk 0:00:26]} 51. Kc3 {[%clk 0:00:01]}  Kc5 {[%clk 0:00:25]} 52. Kd3 {[%clk 0:00:01]}  Bf4 {[%clk 0:00:26]} 53. Ke4 {[%clk 0:00:02]}  Kxb5 {[%clk 0:00:26]} 54. Rd8 {[%clk 0:00:02]}  Kc4 {[%clk 0:00:25]} 55. Rc8+ {[%clk 0:00:02]}  Kb4 {[%clk 0:00:25]} 56. Kd4 {[%clk 0:00:02]}  b5 {[%clk 0:00:25]} 57. Rc6 {[%clk 0:00:02]}  Kb3 {[%clk 0:00:25]} 58. Rb6 {[%clk 0:00:02]}  b4 {[%clk 0:00:25]} 59. Kd3 {[%clk 0:00:02]}  Ka3 {[%clk 0:00:24]} 60. Ra6+ {[%clk 0:00:03]}  Kb3 {[%clk 0:00:24]} 61. Rb6 {[%clk 0:00:03]}  Be5 {[%clk 0:00:20]} 62. Re6 {[%clk 0:00:03]}  Bf4 {[%clk 0:00:20]} 63. Rb6 {[%clk 0:00:03]} 1/2-1/2


[Site "https://www.chess.com"]